bitfinex-derivatives/quotes_SOLF0:USTF0_20250113
["timestamp","ask_amount","ask_price","bid_price","bid_amount"]
[1736733300918,19.75080269,187.0,186.94,33.82518851]
[1736733301116,6.08,187.06,186.94,33.82518851]
[1736733301319,19.75080269,187.06,186.94,33.82518851]
[1736733301923,6.08,187.08,186.94,15.74068115]
[1736733302924,19.75080269,187.12,186.96,19.75080269]
[1736733303123,19.75080269,187.12,186.97,1.6473]
[1736733303327,12.35273649,187.12,187.06,2.6738]
[1736733303626,12.35273649,187.09,186.98,1.5264]
[1736733304122,12.35273649,187.09,187.01,2.6745]
[1736733304325,12.35273649,187.06,186.94,15.74068115]
[1736733304521,6.08,187.14,186.94,15.74068115]
[1736733304720,12.35273649,187.07,187.03,2.6743]
[1736733304924,12.35273649,187.07,186.94,15.74068115]
[1736733305115,12.35273649,187.07,187.03,2.6743]
[1736733305321,12.35273649,187.07,186.94,15.74068115]
[1736733305624,12.35273649,187.07,186.97,12.35273649]
[1736733305824,12.35273649,187.07,187.03,2.6742]
[1736733306932,12.35273649,187.1,187.0,12.35273649]
[1736733307116,12.35273649,187.13,187.01,1.6069]
[1736733307320,12.35273649,187.13,187.1,2.6731]
[1736733307520,91.72,187.17,187.01,1.6069]
[1736733307521,18.45273649,187.2,187.06,12.35273649]
[1736733308027,18.45273649,187.2,187.12,2.6729]
[1736733308624,21.12463649,187.2,187.12,2.6729]
[1736733308826,18.45273649,187.2,187.12,2.6729]
[1736733309329,25.85202125,187.2,187.12,2.6729]
[1736733309525,28.52392125,187.2,187.04,19.75202125]
[1736733309920,25.85202125,187.2,187.04,19.75202125]
[1736733310321,6.1,187.2,187.07,19.75202125]
[1736733310725,6.1,187.2,187.04,19.75202125]
[1736733310726,19.75202125,187.2,187.04,19.75202125]
[1736733311725,2.672,187.19,187.12,2.6729]
[1736733311930,19.75202125,187.17,187.04,19.75202125]
[1736733312727,22.42482125,187.14,187.05,2.6739]
[1736733312924,19.75202125,187.14,187.02,3.1731]
[1736733314025,2.673,187.12,187.05,2.6739]
[1736733314925,2.673,187.12,187.06,2.6738]
[1736733315230,19.75202125,187.14,187.02,3.1731]
[1736733315532,6.08,187.16,187.02,3.1731]
[1736733315731,19.75202125,187.17,187.02,3.1731]
[1736733316031,9.277096,187.26,187.1,19.75202125]
[1736733316332,9.277096,187.26,187.13,19.75202125]
[1736733316523,19.75202125,187.29,187.14,3.1405]
[1736733316725,263.25091661,187.3,187.14,3.1405]
[1736733316726,263.25091661,187.3,187.23,2.6714]
[1736733317031,116.10748222,187.3,187.23,2.6714]
[1736733317229,2.6706,187.29,187.23,2.6714]
[1736733317432,116.10748222,187.3,187.16,19.75202125]
[1736733317732,116.10748222,187.3,187.24,2.6712]
[1736733318631,116.10748222,187.3,187.26,2.6709]
[1736733318937,19.75202125,187.35,187.19,19.75202125]
[1736733319727,19.75202125,187.32,187.22,2.6714]
[1736733319925,19.75202125,187.32,187.17,6.06]
[1736733320128,19.75202125,187.32,187.16,19.75202125]
[1736733320327,2.6709,187.27,187.14,3.1405]
[1736733320728,19.75202125,187.29,187.17,2.6723]
[1736733321129,19.75202125,187.29,187.14,3.1405]
[1736733321931,2.6712,187.25,187.19,2.672]
[1736733322431,6.06,187.28,187.14,3.1405]
[1736733323237,6.06,187.28,187.16,19.75202125]
[1736733323427,19.75202125,187.35,187.19,19.75202125]
[1736733323632,2.6701,187.32,187.23,2.6713]
[1736733323833,19.75202125,187.35,187.19,19.75202125]
[1736733324327,2.6701,187.32,187.19,19.75202125]
[1736733324527,19.75202125,187.35,187.19,19.75202125]
[1736733324725,25.81202125,187.38,187.19,19.75202125]
[1736733324928,19.75202125,187.38,187.19,25.81202125]
[1736733325132,2.6697,187.36,187.28,2.6706]
[1736733325331,2.6697,187.36,187.19,6.06]
[1736733325532,2.6697,187.36,187.22,19.75202125]
[1736733325735,2.6697,187.36,187.23,3.2288]
[1736733326126,2.6697,187.36,187.24,1.6687]
[1736733326836,141.83457002,187.41,187.25,19.75202125]
[1736733327232,135.79457002,187.41,187.25,19.75202125]
[1736733328034,2.669,187.4,187.29,2.6704]
[1736733328234,135.79457002,187.41,187.25,19.75202125]
[1736733328539,2.6694,187.38,187.3,2.6703]
[1736733328743,19.75202125,187.38,187.24,1.6687]
[1736733329037,19.75202125,187.35,187.24,1.6687]
[1736733329436,2.67,187.34,187.27,2.6707]
[1736733330231,19.75202125,187.35,187.24,1.6687]
[1736733330436,183.92929299,187.52,187.31,19.75202125]
[1736733330644,203.68131424,187.52,187.34,19.75202125]
[1736733330831,183.92929299,187.52,187.37,19.75202125]
[1736733331032,186.59659299,187.52,187.4,19.75202125]
[1736733331236,183.92929299,187.52,187.4,19.75202125]
[1736733331435,183.92929299,187.52,187.46,2.6681]
[1736733331640,183.92929299,187.52,187.4,19.75202125]
[1736733331943,29.01448812,187.55,187.41,1.5576]
[1736733332139,2.6672,187.53,187.41,1.5576]
[1736733332345,29.01448812,187.55,187.41,1.5576]
[1736733332734,2.6673,187.52,187.41,1.5576]
[1736733334738,2.6671,187.54,187.44,2.6684]
[1736733334943,29.01448812,187.55,187.44,2.6684]
[1736733336144,29.01448812,187.55,187.41,1.5576]
[1736733336844,19.75202125,187.52,187.41,2.6688]
[1736733337042,19.75202125,187.52,187.36,21.31022125]
[1736733337242,2.6685,187.44,187.37,2.6694]
[1736733338046,2.6671,187.54,187.47,2.6679]
[1736733338246,9.26246687,187.55,187.47,2.6679]
[1736733338446,9.26246687,187.55,187.43,19.75202125]
[1736733338638,9.26246687,187.55,187.39,25.75202125]
[1736733339545,2.6673,187.52,187.39,25.75202125]
[1736733339746,2.6673,187.52,187.42,19.75202125]
[1736733340043,2.6676,187.5,187.41,2.6687]
[1736733340239,9.26246687,187.55,187.39,25.75202125]
[1736733340646,2.6677,187.5,187.42,2.6686]
[1736733341041,9.26246687,187.55,187.39,25.75202125]
[1736733341245,19.75202125,187.53,187.39,25.75202125]
[1736733342244,19.75202125,187.53,187.39,19.75202125]
[1736733342444,19.75202125,187.53,187.36,21.31022125]
[1736733342948,2.668,187.47,187.4,2.669]
[1736733343442,19.75202125,187.53,187.4,2.669]
[1736733343648,9.26246687,187.55,187.35,3.1657]
[1736733343649,19.75202125,187.47,187.35,3.1657]
[1736733344245,19.75202125,187.44,187.35,3.1657]
[1736733344544,19.75202125,187.44,187.3,4.8442]
[1736733345141,2.6692,187.39,187.32,2.67]
[1736733345650,2.6692,187.39,187.33,2.67]
[1736733346948,19.75202125,187.41,187.3,3.2424]
[1736733347644,2.6696,187.36,187.3,5.9128]
[1736733347845,2.6696,187.36,187.3,3.2424]
[1736733348050,19.75202125,187.41,187.3,3.2424]
[1736733348451,2.6696,187.36,187.3,3.2424]
[1736733348840,2.6695,187.37,187.31,2.6703]
[1736733349052,5.98,187.4,187.3,3.2424]
[1736733350342,19.75202125,187.38,187.26,1.5228]
[1736733350547,2.6701,187.33,187.26,4.1937]
[1736733350952,19.75202125,187.38,187.24,3.192]
[1736733351148,2.6701,187.33,187.27,2.6709]
[1736733351355,19.75202125,187.38,187.27,2.6709]
[1736733351552,2.6703,187.32,187.26,2.671]
[1736733351851,2.6703,187.32,187.24,3.192]
[1736733351852,5.98,187.4,187.24,3.192]
[1736733352349,2.6696,187.36,187.24,3.192]
[1736733352556,5.98,187.4,187.24,3.192]
[1736733353562,2.6699,187.35,187.29,2.6705]
[1736733353958,19.75202125,187.38,187.24,3.192]
[1736733354161,19.75202125,187.35,187.24,3.192]
[1736733355662,2.6704,187.31,187.25,2.671]
[1736733357059,2.6701,187.33,187.27,2.6709]
[1736733357461,19.75202125,187.38,187.27,2.6709]
[1736733357862,19.75202125,187.38,187.24,3.192]
[1736733358065,5.96,187.39,187.25,19.75202125]
[1736733358565,2.6696,187.36,187.3,2.6703]
[1736733358766,5.96,187.39,187.3,2.6703]
[1736733358968,19.75202125,187.41,187.25,19.75202125]
[1736733359165,2.6695,187.37,187.32,2.6701]
[1736733359866,2.6693,187.39,187.34,2.6698]
[1736733360469,2.6693,187.39,187.35,2.6697]
[1736733360868,2.6693,187.39,187.29,1.6229]
[1736733361368,25.71202125,187.44,187.29,1.6229]
[1736733362672,2.6696,187.36,187.32,2.6701]
[1736733362977,2.6696,187.36,187.29,1.6229]
[1736733363269,25.71202125,187.44,187.29,1.6229]
[1736733363476,29.01878961,187.47,187.31,19.75202125]
[1736733363668,9.26676836,187.47,187.34,19.75202125]
[1736733363863,2.6681,187.47,187.4,2.6689]
[1736733364070,25.71202125,187.56,187.4,19.75202125]
[1736733364275,25.71202125,187.56,187.41,1.5103]
[1736733364567,147.14343439,187.59,187.41,1.5103]
[1736733364772,25.71202125,187.58,187.43,19.75202125]
[1736733364962,25.71202125,187.58,187.41,1.5103]
[1736733365166,19.75202125,187.58,187.41,1.5103]
[1736733365363,25.71202125,187.61,187.46,19.75202125]
[1736733365574,25.71202125,187.61,187.47,1.5242]
[1736733365772,25.71202125,187.61,187.47,4.1921]
[1736733365973,19.75202125,187.58,187.47,1.5242]
[1736733366565,19.75202125,187.58,187.43,19.75202125]
[1736733367175,2.6675,187.52,187.45,2.6683]
[1736733368971,19.75202125,187.55,187.42,7.4842]
[1736733369167,19.75202125,187.55,187.42,1.5242]
[1736733369973,2.6678,187.5,187.42,1.5242]
[1736733370680,2.668,187.49,187.42,4.1931]
[1736733370981,19.75202125,187.55,187.42,1.5242]
[1736733371275,115.92279536,187.63,187.43,5.94]
[1736733371474,115.92279536,187.63,187.49,19.75202125]
[1736733371681,19.75202125,187.65,187.5,1.5385]
[1736733371876,2.6662,187.61,187.54,2.6672]
[1736733372274,19.75202125,187.65,187.5,3.1594]
[1736733372577,5.96,187.67,187.5,3.1594]
[1736733372578,19.75202125,187.62,187.5,5.8271]
[1736733373181,19.75202125,187.62,187.5,4.2062]
[1736733373881,2.667,187.56,187.5,4.2062]
[1736733374579,2.6671,187.55,187.5,4.2062]
[1736733375370,2.6671,187.55,187.5,1.5385]
[1736733375571,19.75202125,187.62,187.43,1.6209]
[1736733375572,5.94,187.59,187.43,1.6209]
[1736733375880,19.75202125,187.56,187.43,3.1288]
[1736733376081,19.75202125,187.56,187.45,2.6684]
[1736733376477,19.75202125,187.56,187.43,3.1288]
[1736733376680,2.6677,187.51,187.44,2.6686]
[1736733377182,19.75202125,187.56,187.43,3.1288]
[1736733377573,19.75202125,187.53,187.43,1.5079]
[1736733377773,2.6681,187.48,187.43,1.5079]
[1736733378085,19.75202125,187.5,187.39,1.6115]
[1736733378275,5.94,187.51,187.39,1.6115]
[1736733378879,5.94,187.51,187.36,3.1188]
[1736733378880,19.75202125,187.5,187.36,3.1188]
[1736733379881,25.69202125,187.51,187.36,3.1188]
[1736733380479,2.6688,187.43,187.38,2.6694]
[1736733380879,19.75202125,187.48,187.33,1.6115]
[1736733381081,19.75202125,187.48,187.34,2.67]
[1736733381685,2.6693,187.4,187.34,2.67]
[1736733382182,5.96,187.43,187.3,3.1605]
[1736733382377,19.75202125,187.42,187.3,1.5563]
[1736733382881,2.6696,187.38,187.31,2.6704]
[1736733383489,2.6696,187.38,187.3,1.5563]
[1736733383688,2.6696,187.38,187.32,2.6703]
[1736733384786,2.6696,187.37,187.32,2.6703]
[1736733388988,2.6696,187.37,187.3,4.2268]
[1736733389195,2.6696,187.37,187.3,1.5563]
[1736733390194,2.6696,187.37,187.31,2.6704]
[1736733390589,2.6695,187.38,187.32,2.6703]
[1736733391696,2.6695,187.38,187.3,4.2268]
[1736733392196,2.6699,187.35,187.3,1.5563]
[1736733392396,19.75202125,187.39,187.26,22.87442125]
[1736733392695,2.6699,187.36,187.26,5.7936]
[1736733392895,19.75202125,187.39,187.26,5.7936]
[1736733393485,19.75202125,187.39,187.26,3.1224]
[1736733393691,2.6702,187.33,187.27,2.671]
[1736733394391,2.6702,187.33,187.28,2.6709]
[1736733396299,19.75202125,187.36,187.27,2.671]
[1736733396498,2.6708,187.29,187.2,21.27212125]
[1736733396799,19.75202125,187.33,187.2,21.27212125]
[1736733397002,2.6708,187.29,187.24,2.6713]
[1736733397297,5.94,187.35,187.2,1.5201]
[1736733397499,2.6706,187.31,187.2,21.27212125]
[1736733397700,25.69202125,187.35,187.2,21.27212125]
[1736733398296,2.6705,187.31,187.2,21.27212125]
[1736733398499,2.6705,187.31,187.25,2.6712]
[1736733398797,25.69202125,187.35,187.25,2.6712]
[1736733399005,2.6706,187.3,187.25,2.6712]
[1736733399498,5.94,187.35,187.23,19.75202125]
[1736733400300,2.6701,187.34,187.29,2.6707]
[1736733400800,5.94,187.35,187.23,19.75202125]
[1736733401101,2.6702,187.33,187.28,2.6709]
[1736733403699,5.94,187.35,187.23,19.75202125]
[1736733405304,5.94,187.35,187.26,2.6711]
[1736733405305,2.6706,187.31,187.26,2.6711]
[1736733407304,2.6701,187.34,187.23,19.75202125]
[1736733407501,116.04957778,187.39,187.23,19.75202125]
[1736733407502,5.94,187.37,187.23,19.75202125]
[1736733407706,5.94,187.37,187.26,19.75202125]
[1736733407905,2.6698,187.36,187.3,2.6706]
[1736733408502,2.6696,187.38,187.33,2.6701]
[1736733408701,2.6696,187.38,187.29,19.75202125]
[1736733408901,305.41202125,187.56,187.3,1.5663]
[1736733409107,2.6689,187.43,187.38,2.6695]
[1736733409298,19.75202125,187.48,187.32,19.75202125]
[1736733409502,25.69202125,187.48,187.32,19.75202125]
[1736733409704,2.6686,187.44,187.38,2.6694]
[1736733411303,2.6686,187.44,187.35,19.75202125]
[1736733411507,2.6684,187.46,187.4,2.6691]
[1736733412303,2.6685,187.45,187.4,2.6691]
[1736733413106,5.94,187.5,187.36,3.246]
[1736733413410,19.75202125,187.56,187.38,19.75202125]
[1736733413610,5.94,187.55,187.41,19.75202125]
[1736733414206,9.26031088,187.6,187.41,19.75202125]
[1736733414207,5.94,187.57,187.41,19.75202125]
[1736733414610,19.75202125,187.59,187.49,2.6678]
[1736733414805,25.69202125,187.59,187.44,19.75202125]
[1736733415310,2.6671,187.55,187.49,2.6678]
[1736733415510,25.69202125,187.59,187.45,3.2592]
[1736733416313,5.94,187.59,187.45,3.2592]
[1736733416507,9.26031088,187.6,187.51,2.6676]
[1736733416508,2.6667,187.58,187.51,2.6676]
[1736733416709,2.6667,187.58,187.48,1.6447]
[1736733417009,9.26031088,187.6,187.48,1.6447]
[1736733417515,5.94,187.64,187.5,19.75202125]
[1736733418012,2.6662,187.61,187.54,2.6672]
[1736733419004,5.94,187.64,187.57,2.6668]
[1736733419202,5.94,187.64,187.5,19.75202125]
[1736733419607,5.94,187.66,187.5,19.75202125]
[1736733420209,2.6659,187.64,187.56,2.6668]
[1736733420407,2.6659,187.64,187.5,19.75202125]
[1736733420905,5.94,187.66,187.5,19.75202125]
[1736733421110,2.6661,187.62,187.5,19.75202125]
[1736733421305,19.75202125,187.65,187.48,1.6447]
[1736733421612,2.6664,187.6,187.48,1.6447]
[1736733421802,19.75202125,187.62,187.48,1.6447]
[1736733422002,5.94,187.66,187.52,19.75202125]
[1736733422201,2.6659,187.63,187.52,19.75202125]
[1736733422408,25.69202125,187.66,187.54,2.6671]
[1736733422613,25.69202125,187.66,187.49,19.75202125]
[1736733422911,2.6662,187.62,187.54,2.6672]
[1736733423105,25.69202125,187.66,187.54,2.6672]
[1736733424307,9.25490869,187.7,187.52,19.75202125]
[1736733424714,2.6654,187.67,187.55,19.75202125]
[1736733424916,2.6654,187.67,187.56,1.5414]
[1736733425311,9.25372693,187.73,187.57,1.5593]
[1736733425611,9.25372693,187.73,187.58,19.75202125]
[1736733426007,2.6647,187.72,187.58,19.75202125]
[1736733426414,9.25372693,187.73,187.61,19.75202125]
[1736733426711,11.91822693,187.73,187.61,19.75202125]
[1736733426904,9.25372693,187.73,187.62,1.5913]
[1736733427310,2.6644,187.74,187.66,2.6654]
[1736733427613,19.75202125,187.8,187.64,19.75202125]
[1736733427814,5.94,187.79,187.65,1.5416]
[1736733428207,5.94,187.79,187.66,1.5076]
[1736733429012,19.75202125,187.77,187.66,1.5076]
[1736733429915,2.6646,187.73,187.67,2.6654]
[1736733430307,2.6646,187.73,187.66,1.5076]
[1736733430308,5.339,187.85,187.66,1.5076]
[1736733430612,19.75202125,187.82,187.66,1.5076]
[1736733430815,25.69202125,187.82,187.66,1.5076]
[1736733431217,2.6644,187.75,187.68,2.6651]
[1736733431408,19.75202125,187.79,187.68,2.6651]
[1736733431808,19.75202125,187.79,187.66,1.5076]
[1736733432113,5.94,187.82,187.66,1.5076]
[1736733432306,2.664,187.77,187.66,1.5076]
[1736733432705,25.69202125,187.82,187.72,2.6646]
[1736733432907,2.6638,187.79,187.72,2.6646]
[1736733433108,25.69202125,187.82,187.72,2.6646]
[1736733433403,2.6641,187.76,187.71,2.6648]
[1736733433807,19.75202125,187.79,187.66,1.5076]
[1736733434016,2.6644,187.74,187.66,1.5076]
[1736733434213,19.75202125,187.79,187.66,1.5076]
[1736733434409,5.94,187.82,187.62,1.5913]
[1736733434410,2.6647,187.72,187.62,1.5913]
[1736733434605,5.94,187.73,187.62,1.5913]
[1736733434808,5.94,187.73,187.65,2.6656]
[1736733435017,2.6648,187.72,187.62,1.5913]
[1736733435612,8.6045,187.73,187.67,2.6653]
[1736733437115,2.6649,187.71,187.65,2.6655]
[1736733438320,2.665,187.7,187.64,2.6658]
[1736733438616,19.75202125,187.73,187.62,1.5913]
[1736733438829,5.94,187.74,187.68,2.6651]
[1736733439119,5.94,187.74,187.63,19.75202125]
[1736733439906,5.94,187.74,187.66,19.75202125]
[1736733440110,2.6638,187.78,187.73,2.6645]
[1736733440319,5.94,187.81,187.67,3.1068]
[1736733440522,2.6636,187.8,187.73,2.6644]
[1736733440717,5.94,187.81,187.73,2.6644]
[1736733441014,5.94,187.82,187.73,2.6644]
[1736733441220,5.94,187.82,187.67,3.1068]
[1736733442712,19.75202125,187.76,187.62,1.5913]
[1736733443020,19.75202125,187.73,187.62,1.5913]
[1736733443219,5.94,187.72,187.62,1.5913]
[1736733444323,5.94,187.72,187.63,2.6658]
[1736733445021,5.94,187.72,187.64,2.6658]
[1736733445423,5.94,187.72,187.62,1.5913]
[1736733445626,5.94,187.72,187.57,22.98752125]
[1736733446623,2.6651,187.69,187.64,2.6658]
[1736733448527,5.94,187.72,187.64,2.6658]
[1736733448722,5.94,187.72,187.57,22.98752125]
[1736733449725,19.75202125,187.7,187.57,3.2355]
[1736733449925,2.6665,187.59,187.57,3.2355]
[1736733450231,19.75202125,187.67,187.57,3.2355]
[1736733450731,19.75202125,187.67,187.49,19.75202125]
[1736733450924,19.75202125,187.67,187.5,4.7581]
[1736733451124,19.75202125,187.64,187.5,4.7581]
[1736733451324,5.94,187.63,187.5,4.7581]
[1736733451724,2.6668,187.57,187.52,2.6675]
[1736733453834,2.6663,187.61,187.55,2.667]
[1736733454226,5.94,187.63,187.55,2.667]
[1736733454426,194.0,187.77,187.6,2.6663]
[1736733454631,19.75202125,187.71,187.55,19.75202125]
[1736733458129,19.75202125,187.68,187.52,19.75202125]
[1736733458334,5.94,187.67,187.52,19.75202125]
[1736733458834,2.6664,187.6,187.55,2.6669]
[1736733459634,19.75202125,187.65,187.5,4.7581]
[1736733460029,2.6663,187.61,187.52,2.6674]
[1736733460236,19.75202125,187.65,187.52,2.6674]
[1736733460838,19.75202125,187.65,187.51,2.6676]
[1736733461435,19.75202125,187.62,187.5,4.7581]
[1736733462341,2.6672,187.55,187.5,4.7581]
[1736733462733,2.6672,187.55,187.5,7.4258]
[1736733463342,5.94,187.59,187.5,4.7581]
[1736733464739,2.6669,187.56,187.51,2.6676]
[1736733465844,5.94,187.59,187.52,2.6675]
[1736733466539,2.6668,187.57,187.52,2.6675]
[1736733467045,5.94,187.59,187.52,2.6675]
[1736733467245,2.6667,187.58,187.52,2.6675]
[1736733467545,5.94,187.59,187.52,2.6675]
[1736733468039,5.94,187.59,187.54,2.6672]
[1736733468544,5.94,187.59,187.5,17.04928609]
[1736733468744,5.94,187.59,187.53,2.6673]
[1736733469134,2.6665,187.6,187.53,2.6673]
[1736733469438,18.23118609,187.62,187.53,2.6673]
[1736733470147,2.6667,187.58,187.53,2.6673]
[1736733471247,12.29118609,187.59,187.43,75.24269677]
[1736733471441,12.29118609,187.56,187.44,3.1814]
[1736733472043,2.6674,187.53,187.45,2.6684]
[1736733472245,12.29118609,187.56,187.45,2.6684]
[1736733472748,2.6679,187.5,187.45,2.6684]
[1736733473746,2.6679,187.5,187.46,2.6683]
[1736733474149,12.29118609,187.56,187.46,2.6683]
[1736733474448,12.29118609,187.58,187.44,15.47258609]
[1736733474649,18.23118609,187.61,187.47,12.29118609]
[1736733474850,2.6668,187.58,187.48,1.6575]
[1736733475049,18.23118609,187.61,187.48,1.6575]
[1736733475352,2.6669,187.56,187.48,1.6575]
[1736733475545,18.23118609,187.61,187.48,1.6575]
[1736733476147,2.6673,187.54,187.49,2.6678]
[1736733476358,18.23118609,187.61,187.49,2.6678]
[1736733476564,2.6675,187.53,187.48,4.3256]
[1736733476860,12.29118609,187.58,187.48,4.3256]
[1736733477063,2.6678,187.5,187.46,2.6683]
[1736733477258,2.6678,187.5,187.44,15.47258609]
[1736733478165,2.6678,187.5,187.45,2.6684]
[1736733478559,2.6683,187.47,187.44,3.1814]
[1736733478762,18.23118609,187.52,187.44,3.1814]
[1736733479064,12.29118609,187.49,187.4,3.0969]
[1736733479859,2.6687,187.44,187.4,3.0969]
[1736733481565,2.6689,187.42,187.36,2.6696]
[1736733482166,2.6689,187.42,187.37,2.6696]
[1736733482367,19.69601001,187.47,187.35,1.5877]
[1736733482561,2.6692,187.4,187.35,1.5877]
[1736733483972,2.6692,187.4,187.35,4.2575]
[1736733486964,2.6692,187.4,187.34,2.67]
[1736733490067,19.69601001,187.37,187.14,87.27061526]
[1736733490275,19.69601001,187.34,187.21,3.1947]
[1736733490575,2.6705,187.31,187.21,3.1947]
[1736733490773,19.69601001,187.34,187.21,3.1947]
[1736733491072,5.94,187.36,187.23,19.69601001]
[1736733491374,25.63601001,187.4,187.26,19.69601001]
[1736733491572,25.63601001,187.4,187.27,1.569]
[1736733492768,25.63601001,187.4,187.29,2.6708]
[1736733493173,2.6697,187.37,187.29,2.6708]
[1736733493375,25.63601001,187.4,187.29,2.6708]
[1736733493768,2.67,187.35,187.29,2.6708]
[1736733494074,25.63601001,187.4,187.29,2.6708]
[1736733494573,19.69601001,187.37,187.28,2.6709]
[1736733494775,19.69601001,187.37,187.27,1.569]
[1736733495474,2.6705,187.32,187.27,2.671]
[1736733495666,19.69601001,187.37,187.27,2.671]
[1736733495867,19.69601001,187.37,187.22,21.27261001]
[1736733496068,19.69601001,187.37,187.22,1.5766]
[1736733496571,2.6706,187.3,187.25,2.6713]
[1736733496776,19.69601001,187.34,187.25,2.6713]
[1736733497075,2.6704,187.32,187.25,2.6713]
[1736733497273,19.69601001,187.34,187.25,2.6713]
[1736733498072,2.6707,187.3,187.25,2.6713]
[1736733499874,2.6709,187.28,187.24,2.6715]
[1736733500173,19.69601001,187.34,187.24,2.6715]
[1736733500375,19.69601001,187.34,187.22,1.5766]
[1736733500575,2.6707,187.3,187.25,2.6713]
[1736733501576,2.6708,187.29,187.24,2.6715]
[1736733502371,2.6709,187.28,187.24,2.6715]
[1736733503069,5.94,187.32,187.21,3.1947]
[1736733503274,19.69601001,187.31,187.21,3.1947]
[1736733503480,12.33361581,187.29,187.21,3.1947]
[1736733503978,15.00451581,187.29,187.24,2.6715]
[1736733504772,12.33361581,187.36,187.23,12.33361581]
[1736733504975,12.33361581,187.36,187.26,12.33361581]
[1736733505180,5.94,187.38,187.26,12.33361581]
[1736733505378,2.6698,187.36,187.26,12.33361581]
[1736733506280,2.6698,187.36,187.3,2.6705]
[1736733506674,2.6699,187.35,187.3,2.6705]
[1736733507678,2.6698,187.36,187.31,2.6704]
[1736733508380,18.27361581,187.39,187.26,12.33361581]
[1736733508577,2.6699,187.35,187.3,2.6706]
[1736733509378,18.27361581,187.39,187.31,2.6705]
[1736733509581,2.6698,187.37,187.31,2.6705]
[1736733509778,18.27361581,187.39,187.31,2.6705]
[1736733509983,18.27361581,187.39,187.26,12.33361581]
[1736733510176,18.27361581,187.39,187.32,2.6703]
[1736733510786,2.6696,187.37,187.32,2.6703]
[1736733510981,21.60236494,187.42,187.29,12.33361581]
[1736733511178,21.60236494,187.42,187.32,12.33361581]
[1736733511379,9.26874913,187.42,187.33,1.5942]
[1736733512179,2.6691,187.41,187.36,2.6696]
[1736733512374,9.26874913,187.42,187.33,1.5942]
[1736733512577,8.6087,187.44,187.39,2.6693]
[1736733512777,12.33361581,187.45,187.35,12.33361581]
[1736733512982,12.33361581,187.48,187.38,12.33361581]
[1736733513180,12.33361581,187.48,187.39,1.5726]
[1736733513181,15.00171581,187.48,187.39,1.5726]
[1736733513384,147.14343439,187.59,187.41,12.33361581]
[1736733513681,12.33361581,187.54,187.44,12.33361581]
[1736733513885,15.00091581,187.54,187.47,2.6682]
[1736733514488,2.6676,187.51,187.42,3.1605]
[1736733516989,12.33361581,187.51,187.42,3.1605]
[1736733517187,12.33361581,187.56,187.42,3.1605]
[1736733517188,12.33361581,187.48,187.42,1.552]
[1736733517391,12.33361581,187.48,187.39,1.5726]
[1736733518591,2.6682,187.47,187.41,2.669]
[1736733518992,5.94,187.5,187.41,2.669]
[1736733520189,2.6681,187.48,187.41,2.669]
[1736733520792,2.6684,187.46,187.39,4.2418]
[1736733520994,12.33361581,187.48,187.39,1.5726]
[1736733521883,12.33361581,187.48,187.39,4.2419]
[1736733522486,2.6686,187.45,187.39,4.2419]
[1736733522688,12.33361581,187.48,187.39,1.5726]
[1736733522888,5.94,187.5,187.37,2.6695]
[1736733522889,12.33361581,187.45,187.37,2.6695]
[1736733523090,15.00221581,187.45,187.35,12.33361581]
[1736733523284,15.00221581,187.45,187.39,2.6692]
[1736733523683,2.6686,187.45,187.39,2.6692]
[1736733523885,2.6686,187.45,187.4,2.6691]
[1736733524091,12.33361581,187.48,187.35,12.33361581]
[1736733524294,18.27361581,187.51,187.33,1.5077]
[1736733524488,12.33361581,187.51,187.45,2.6684]
[1736733524997,5.94,187.53,187.45,2.6684]
[1736733525395,2.6678,187.51,187.45,2.6684]
[1736733525791,5.94,187.53,187.45,2.6684]
[1736733526097,5.94,187.53,187.42,3.3038]
[1736733526098,12.33361581,187.51,187.42,3.3038]
[1736733526697,2.6679,187.5,187.44,2.6686]